[Event "Grandmaster Tournament Blitz"]
[Site "Biel/Bienne, Switzerland"]
[Date "2019.07.27"]
[Round "1.2"]
[White "Cori, Jorge"]
[Black "Leko, Peter"]
[Result "1/2-1/2"]
[ECO "E14"]
[WhiteElo "2558"]
[BlackElo "2743"]
[PlyCount "129"]
[EventDate "2019.??.??"]
[EventType "blitz"]
[TimeControl "3+2"]
[WhiteClock "0:00:07"]
[BlackClock "0:00:22"]

1. d4 {[%emt 0:00:00]} Nf6 {[%emt 0:00:00]} 2. Nf3 {[%emt 0:00:00]} e6 {
[%emt 0:00:00]} 3. c4 {[%emt 0:00:00]} d5 {[%emt 0:00:00]} 4. e3 {[%emt 0:00:
00]} b6 {[%emt 0:00:00]} 5. Nc3 {[%emt 0:00:00]} Bd6 {[%emt 0:00:00]} 6. Bd3 {
[%emt 0:00:00]} Bb7 {[%emt 0:00:00]} 7. O-O {[%emt 0:00:00]} O-O {[%emt 0:00:
00]} 8. b3 {[%emt 0:00:00]} Nbd7 {[%emt 0:00:00]} 9. Bb2 {[%emt 0:00:00]} a6 {
[%emt 0:00:00]} 10. Re1 {[%emt 0:00:00]} Re8 {[%emt 0:00:00]} 11. e4 {[%emt 0:
00:00]} dxe4 {[%emt 0:00:00]} 12. Nxe4 {[%emt 0:00:00]} Nxe4 {[%emt 0:00:00]}
13. Bxe4 {[%emt 0:00:00]} Bxe4 {[%emt 0:00:00]} 14. Rxe4 {[%emt 0:00:00]} Nf6 {
[%emt 0:00:00]} 15. Re3 {[%emt 0:00:00]} c5 {[%emt 0:00:00]} 16. Rd3 {[%emt 0:
00:00]} Qe7 {[%emt 0:00:00]} 17. Qe2 {[%emt 0:00:00]} cxd4 {[%emt 0:00:00]} 18.
Nxd4 {[%emt 0:00:00]} Qc7 {[%emt 0:00:00]} 19. g3 {[%emt 0:00:00]} Rad8 {
[%emt 0:00:00]} 20. Rad1 {[%emt 0:00:00]} Be7 {[%emt 0:00:00]} 21. Kg2 {
[%emt 0:00:00]} h6 {[%emt 0:00:00]} 22. h3 {[%emt 0:00:00]} Bf8 {[%emt 0:00:00]
} 23. Qf3 {[%emt 0:00:00]} Rc8 {[%emt 0:00:00]} 24. Nc2 {[%emt 0:00:00]} Qc6 {
[%emt 0:00:00]} 25. Qxc6 {[%emt 0:00:03]} Rxc6 {[%emt 0:00:00]} 26. Be5 {
[%emt 0:00:02]} Be7 {[%emt 0:00:00]} 27. Ne3 {[%emt 0:00:11]} Kf8 {[%emt 0:00:
01]} 28. Kf3 {[%emt 0:00:01]} b5 {[%emt 0:00:06]} 29. Bd6 {[%emt 0:00:15]} bxc4
{[%emt 0:00:04]} 30. bxc4 {[%emt 0:00:02]} Rec8 {[%emt 0:00:08]} 31. h4 {
[%emt 0:00:11]} h5 {[%emt 0:00:03]} 32. Be5 {[%emt 0:00:03]} g6 {[%emt 0:00:07]
} 33. Rb1 {[%emt 0:00:05]} Ne8 {[%emt 0:00:08]} 34. Rb7 {[%emt 0:00:01]} Nd6 {
[%emt 0:00:07]} 35. Bxd6 {[%emt 0:00:13]} Rxd6 {[%emt 0:00:07]} 36. Rxd6 {
[%emt 0:00:02]} Bxd6 {[%emt 0:00:01]} 37. Rb6 {[%emt 0:00:00]} Bc5 {[%emt 0:00:
01]} 38. Rxa6 {[%emt 0:00:05]} Bxe3 {[%emt 0:00:01]} 39. Kxe3 {[%emt 0:00:01]}
Rxc4 {[%emt 0:00:01]} 40. Ra8+ {[%emt 0:00:06]} Ke7 {[%emt 0:00:02]} 41. a4 {
[%emt 0:00:02]} Kf6 {[%emt 0:00:02]} 42. a5 {[%emt 0:00:00]} Ra4 {[%emt 0:00:
01]} 43. a6 {[%emt 0:00:01]} Ke5 {[%emt 0:00:06]} 44. a7 {[%emt 0:00:05]} Ra3+
{[%emt 0:00:04]} 45. Kd2 {[%emt 0:00:02]} Kf6 {[%emt 0:00:02]} 46. Kc2 {
[%emt 0:00:03]} Kg7 {[%emt 0:00:05]} 47. Kb2 {[%emt 0:00:00]} Ra6 {[%emt 0:00:
02]} 48. Kc3 {[%emt 0:00:01]} Ra2 {[%emt 0:00:01]} 49. Kd4 {[%emt 0:00:02]} Kf6
{[%emt 0:00:01]} 50. Kc5 {[%emt 0:00:04]} Rc2+ {[%emt 0:00:02]} 51. Kd6 {
[%emt 0:00:01]} Rd2+ {[%emt 0:00:02]} 52. Kc6 {[%emt 0:00:01]} Ra2 {[%emt 0:00:
02]} 53. Kd7 {[%emt 0:00:01]} Kg7 {[%emt 0:00:02]} 54. Ke7 {[%emt 0:00:01]} Ra3
{[%emt 0:00:01]} 55. f3 {[%emt 0:00:01]} Ra2 {[%emt 0:00:05]} 56. Kd6 {[%emt 0:
00:07]} Rd2+ {[%emt 0:00:02]} 57. Ke5 {[%emt 0:00:01]} Rd5+ {[%emt 0:00:01]}
58. Ke4 {[%emt 0:00:01]} Ra5 {[%emt 0:00:01]} 59. g4 {[%emt 0:00:05]} hxg4 {
[%emt 0:00:08]} 60. fxg4 {[%emt 0:00:01]} f5+ {[%emt 0:00:01]} 61. gxf5 {
[%emt 0:00:06]} exf5+ {[%emt 0:00:01]} 62. Kf3 {[%emt 0:00:00]} Ra4 {[%emt 0:
00:02]} 63. Kg3 {[%emt 0:00:01]} Kh7 {[%emt 0:00:01]} 64. Kf3 {[%emt 0:00:02]}
Kg7 {[%emt 0:00:02]} 65. Kg3 {[%emt 0:00:01]} 1/2-1/2